bitfinex-derivatives/quotes_BTCF0:USTF0_20241117
["timestamp","ask_amount","ask_price","bid_price","bid_amount"]
[1731822519705,0.16468398,90599.0,90593.0,0.055183]
[1731822519913,0.05518,90599.0,90594.0,0.55923296]
[1731822520105,0.055182,90596.0,90594.0,0.19843296]
[1731822520299,0.055182,90594.0,90592.0,0.19843296]
[1731822520516,0.055184,90591.0,90590.0,0.19843296]
[1731822520722,0.05528072,90591.0,90590.0,0.20439247]
[1731822522912,0.38644072,90591.0,90590.0,0.20439247]
[1731822523103,0.38644072,90591.0,90590.0,0.19843296]
[1731822524897,0.05528072,90591.0,90590.0,0.19843296]
[1731822525298,0.05528072,90591.0,90589.0,0.19843382]
[1731822525299,0.05528072,90591.0,90587.0,8.22e-05]
[1731822525616,0.05528072,90591.0,90588.0,0.00591205]
[1731822525801,0.05528072,90591.0,90589.0,0.00591205]
[1731822526006,0.05528072,90591.0,90587.0,8.22e-05]
[1731822526326,0.05528072,90591.0,90588.0,0.00595939]
[1731822526506,0.05528072,90591.0,90589.0,0.00595939]
[1731822526702,0.05528072,90591.0,90590.0,0.00595939]
[1731822527704,0.05528072,90591.0,90587.0,8.22e-05]
[1731822527705,0.055186,90589.0,90587.0,8.22e-05]
[1731822529009,0.05368844,90588.0,90587.0,8.22e-05]
[1731822529210,0.055186,90589.0,90587.0,8.22e-05]
[1731822530921,0.41448841,90588.0,90587.0,8.22e-05]
[1731822532108,0.41448841,90588.0,90578.0,0.08986671]
[1731822532417,0.05519,90581.0,90579.0,0.00578863]
[1731822532623,0.05519,90581.0,90578.0,0.08986671]
[1731822532802,0.05519,90581.0,90579.0,0.00578543]
[1731822533017,0.05519,90581.0,90580.0,0.00578543]
[1731822533408,0.05519,90581.0,90580.0,0.10356994]
[1731822533803,0.05519,90581.0,90580.0,0.09778451]
[1731822535421,0.19767795,90590.0,90576.0,0.00165558]
[1731822535716,0.055193,90578.0,90577.0,0.00580989]
[1731822535917,0.055193,90578.0,90576.0,0.20008854]
[1731822536524,0.09778451,90577.0,90576.0,0.00165558]
[1731822537419,0.09778451,90577.0,90570.0,0.19843296]
[1731822537420,0.055197,90571.0,90570.0,0.19843296]
[1731822537806,0.055197,90571.0,90569.0,0.19843296]
[1731822538014,0.055198,90569.0,90568.0,0.19843296]
[1731822538213,0.09778451,90577.0,90566.0,0.70265161]
[1731822538417,0.055199,90567.0,90566.0,0.70181161]
[1731822538912,0.055199,90567.0,90566.0,0.50337865]
[1731822539439,0.0552,90565.0,90562.0,0.19842897]
[1731822539618,0.0552,90565.0,90560.0,0.19842897]
[1731822539821,0.0552,90565.0,90559.0,0.19842897]
[1731822540016,0.0552,90565.0,90559.0,0.0624]
[1731822540516,0.0552,90565.0,90563.0,0.45858451]
[1731822541440,0.0051,90578.0,90563.0,0.45858451]
[1731822541441,0.055197,90571.0,90565.0,0.0552]
[1731822541730,0.055197,90571.0,90570.0,0.09778451]
[1731822544133,0.18683283,90571.0,90570.0,0.09778451]
[1731822544920,0.4093085,90579.0,90566.0,0.0312]
[1731822545154,0.055199,90568.0,90566.0,0.0312]
[1731822545935,0.09778451,90572.0,90563.0,0.3608]
[1731822545936,0.055201,90564.0,90563.0,0.3608]
[1731822546321,0.055201,90564.0,90559.0,0.0624]
[1731822546519,0.055207,90554.0,90553.0,0.0323]
[1731822552426,0.055204,90560.0,90553.0,0.0323]
[1731822552636,0.055204,90560.0,90559.0,0.09778451]
[1731822558032,0.055205,90557.0,90555.0,0.19842897]
[1731822558229,0.055205,90557.0,90556.0,0.00578931]
[1731822561223,0.055202,90563.0,90556.0,0.05299431]
[1731822561430,0.055202,90563.0,90559.0,0.09778451]
[1731822561630,0.055202,90562.0,90559.0,0.09778451]
[1731822562137,0.055203,90561.0,90559.0,0.09778451]
[1731822562335,0.13165524,90564.0,90559.0,0.09778451]
[1731822562536,0.18685424,90567.0,90562.0,0.055202]
[1731822562732,0.18685424,90567.0,90563.0,0.0313]
[1731822562937,0.13165524,90566.0,90565.0,0.0552]
[1731822563141,0.055199,90567.0,90565.0,0.0552]
[1731822563437,0.13165524,90568.0,90564.0,0.29621348]
[1731822563639,0.13165524,90568.0,90566.0,0.055199]
[1731822564138,0.13165524,90567.0,90566.0,0.055199]
[1731822564341,0.055198,90569.0,90566.0,0.055199]
[1731822566140,0.055198,90569.0,90568.0,0.19842897]
[1731822566842,0.055198,90569.0,90566.0,0.055199]
[1731822567143,0.13188026,90568.0,90566.0,0.055199]
[1731822567541,0.13188026,90567.0,90566.0,0.055199]
[1731822567742,0.055198,90569.0,90566.0,0.055199]
[1731822567743,0.13188026,90568.0,90566.0,0.055199]
[1731822569040,0.18707826,90569.0,90567.0,0.1986006]
[1731822570350,0.055198,90569.0,90568.0,0.1986006]
[1731822570645,0.18707826,90569.0,90568.0,0.1986006]
[1731822571664,0.64873692,90569.0,90564.0,0.26491135]
[1731822571844,0.055201,90563.0,90559.0,0.19859556]
[1731822572039,0.055201,90563.0,90546.0,0.3608]
[1731822572040,0.055206,90556.0,90546.0,0.3608]
[1731822572246,0.09778451,90555.0,90546.0,0.3608]
[1731822572541,0.09778451,90555.0,90546.0,0.36164]
[1731822572542,0.055211,90547.0,90546.0,0.36164]
[1731822572740,0.055211,90547.0,90546.0,0.3608]
[1731822573245,0.055211,90547.0,90546.0,0.36662342]
[1731822573841,0.055211,90547.0,90546.0,0.3608]
[1731822574048,0.055217,90538.0,90536.0,0.097]
[1731822574239,0.055217,90538.0,90537.0,0.00582808]
[1731822574652,0.055217,90538.0,90537.0,0.00582614]
[1731822575059,0.055217,90538.0,90536.0,0.19478451]
[1731822576456,0.055217,90538.0,90536.0,0.18678451]
[1731822576639,0.055217,90538.0,90536.0,0.13088451]
[1731822577046,0.055217,90538.0,90536.0,0.09778451]
[1731822579359,0.055217,90538.0,90537.0,0.00581729]
[1731822579654,0.055217,90538.0,90537.0,0.36661729]
[1731822580947,0.055217,90538.0,90537.0,0.36664117]
[1731822581375,0.055217,90538.0,90537.0,0.3608]
[1731822581657,0.055217,90538.0,90537.0,0.36664004]
[1731822582344,0.055217,90538.0,90537.0,0.36662355]
[1731822582948,0.055217,90538.0,90537.0,0.36662302]
[1731822583962,0.055213,90544.0,90538.0,0.055217]
[1731822584149,0.055213,90544.0,90543.0,0.09778451]
[1731822584357,0.055213,90544.0,90543.0,0.10361358]
[1731822584750,0.055213,90544.0,90543.0,0.10361365]
[1731822586858,0.055213,90544.0,90543.0,0.09778451]
[1731822587056,0.055213,90544.0,90543.0,0.10359739]
[1731822587457,0.055213,90544.0,90543.0,0.09778451]
[1731822587966,0.055213,90544.0,90543.0,0.10359591]
[1731822589255,0.055213,90544.0,90543.0,0.09778451]
[1731822589458,0.055213,90544.0,90543.0,0.10359575]
[1731822589852,0.055213,90544.0,90543.0,0.09778451]
[1731822591555,0.055213,90544.0,90543.0,0.08978451]
[1731822598771,0.18708537,90544.0,90539.0,0.033]
[1731822599066,0.055216,90539.0,90538.0,0.09778451]
[1731822599265,0.055216,90539.0,90538.0,0.10358271]
[1731822602366,0.055216,90539.0,90538.0,0.11300659]
[1731822603709,0.055216,90539.0,90538.0,0.09778451]
[1731822603974,0.055216,90539.0,90538.0,0.11309582]
[1731822605176,0.055216,90539.0,90538.0,0.09778451]
[1731822605377,0.055216,90539.0,90538.0,0.12254927]
[1731822606380,0.055216,90539.0,90538.0,0.11454927]
[1731822607081,0.16451441,90543.0,90538.0,0.26204527]
[1731822607283,0.16451441,90543.0,90539.0,0.01533023]
[1731822607483,0.16451441,90543.0,90540.0,0.01533023]
[1731822607779,0.16451441,90543.0,90541.0,0.01533023]
[1731822608086,0.16451441,90543.0,90542.0,0.01533023]
[1731822608678,0.16451441,90544.0,90542.0,0.01533023]
[1731822608864,0.16451441,90544.0,90543.0,0.11311474]
[1731822609063,0.21972641,90545.0,90543.0,0.11311474]
[1731822609367,0.21972641,90545.0,90544.0,0.01533023]
[1731822610676,0.055212,90545.0,90544.0,0.01533023]
[1731822611773,0.10892153,90545.0,90544.0,0.01533023]
[1731822612172,0.2200649,90545.0,90544.0,0.01533023]
[1731822612580,0.055212,90545.0,90544.0,0.01533023]
[1731822612775,0.2200525,90545.0,90544.0,0.01533023]
[1731822612991,0.22005097,90545.0,90544.0,0.01533023]
[1731822613782,0.10892118,90545.0,90538.0,0.09228]
[1731822613971,0.055212,90545.0,90544.0,0.00594722]
[1731822614171,0.10892149,90545.0,90544.0,0.00594722]
[1731822615671,0.055216,90539.0,90538.0,0.09228]
[1731822615870,0.055216,90539.0,90538.0,0.09821353]
[1731822616070,0.055216,90539.0,90538.0,0.10770863]
[1731822616975,0.055216,90539.0,90538.0,0.1076909]
[1731822617885,0.055216,90539.0,90538.0,0.10768457]
[1731822619188,0.1870426,90539.0,90538.0,0.10768457]
[1731822620076,0.1870426,90539.0,90538.0,0.09228]
[1731822620283,0.1870426,90539.0,90538.0,0.10769016]
[1731822621282,0.1870426,90539.0,90538.0,0.09969016]
[1731822621683,0.055216,90539.0,90538.0,0.09969016]
[1731822621886,0.18704526,90539.0,90538.0,0.09969016]
[1731822622078,0.055216,90539.0,90538.0,0.09969016]
[1731822623575,0.055216,90539.0,90538.0,0.09975535]
[1731822623894,0.055216,90539.0,90538.0,0.08428]
[1731822624078,0.055216,90539.0,90538.0,0.09975431]
[1731822627586,0.055216,90539.0,90538.0,0.08428]
[1731822627772,0.055216,90539.0,90538.0,0.09976944]
[1731822628182,0.055216,90539.0,90538.0,0.01548944]
[1731822631582,0.055216,90539.0,90538.0,0.00595692]
[1731822631790,0.055223,90527.0,90526.0,0.09228]
[1731822631978,0.055223,90527.0,90526.0,0.10773481]
[1731822632782,0.055221,90532.0,90526.0,0.10773481]
[1731822632975,0.055221,90532.0,90531.0,0.26504849]
[1731822633171,0.055221,90532.0,90531.0,0.2805033]
[1731822633576,0.055221,90532.0,90531.0,0.01545481]
[1731822633797,0.055221,90532.0,90530.0,0.09778451]
[1731822633992,0.055221,90532.0,90531.0,0.00959501]
[1731822634178,0.055221,90532.0,90531.0,0.01559098]
[1731822635192,0.13157642,90534.0,90531.0,0.01559098]
[1731822635193,0.13157642,90534.0,90531.0,0.21116]
[1731822635542,0.19767795,90571.0,90538.0,0.29335353]
[1731822635682,0.05370709,90570.0,90561.0,0.055203]
[1731822635879,0.25287195,90575.0,90569.0,0.3608]
[1731822636081,0.19767795,90573.0,90569.0,0.3608]
[1731822636388,0.0937,90583.0,90576.0,0.055193]
[1731822636594,0.3608,90588.0,90582.0,0.09778451]
[1731822636799,0.3608,90588.0,90579.0,0.14896938]
[1731822637175,0.055188,90586.0,90580.0,0.00591252]
[1731822637386,0.055188,90586.0,90579.0,0.14896938]
[1731822637687,0.055188,90585.0,90581.0,0.00591254]
[1731822637993,0.055188,90585.0,90579.0,0.14896938]
[1731822638892,0.055188,90585.0,90579.0,0.20416038]
[1731822639278,0.00165626,90590.0,90579.0,0.14896938]
[1731822639486,0.055186,90588.0,90582.0,0.05519]
[1731822639796,0.055186,90588.0,90579.0,0.14896938]
[1731822640001,0.04748121,90591.0,90579.0,0.14896938]
[1731822640185,0.055191,90580.0,90579.0,0.14896938]
[1731822640580,0.055191,90580.0,90578.0,0.3608]
[1731822640985,0.04748121,90591.0,90574.0,0.09216]
[1731822641182,0.055193,90577.0,90574.0,0.09216]
[1731822641383,0.04748121,90591.0,90574.0,0.04679372]
[1731822641587,0.055191,90581.0,90575.0,0.09212]
[1731822642098,0.055188,90586.0,90576.0,0.055193]
[1731822642285,0.055188,90586.0,90575.0,0.09212]
[1731822642490,0.057049,90584.0,90577.0,0.055192]
[1731822644096,0.00186,90584.0,90582.0,0.05519]
[1731822644482,0.00186,90584.0,90578.0,0.14896938]
[1731822644685,0.00186,90584.0,90581.0,0.05519]
[1731822648894,0.055187,90587.0,90581.0,0.05519]
[1731822649197,0.055187,90587.0,90578.0,0.14896938]
[1731822649198,0.04748121,90591.0,90582.0,0.055189]
[1731822649397,0.04748121,90591.0,90583.0,0.055189]
[1731822649895,9.672e-05,90591.0,90585.0,0.20415738]
[1731822651400,9.672e-05,90591.0,90585.0,0.19615738]
[1731822652695,0.05528172,90591.0,90585.0,0.19615738]
[1731822654901,0.055186,90589.0,90584.0,0.3608]
[1731822655101,0.055186,90589.0,90576.0,0.3608]
[1731822655283,0.055186,90589.0,90581.0,0.05519]
[1731822655792,0.055186,90589.0,90577.0,0.0305]
[1731822655991,0.055186,90589.0,90582.0,0.05519]
[1731822656895,0.055186,90588.0,90582.0,0.05519]
[1731822657904,9.672e-05,90591.0,90578.0,0.055192]
[1731822657905,0.055188,90586.0,90578.0,0.055192]
[1731822658207,0.055188,90586.0,90579.0,0.055191]
[1731822658594,0.055189,90584.0,90577.0,0.0305]
[1731822658899,0.3608,90588.0,90577.0,0.0305]
[1731822658900,0.05519,90582.0,90577.0,0.0305]
[1731822661197,0.3608,90588.0,90583.0,0.055189]
[1731822661404,9.672e-05,90591.0,90585.0,0.055187]
[1731822661593,9.672e-05,90591.0,90586.0,0.00615403]
[1731822661790,9.672e-05,90591.0,90587.0,0.00615403]
[1731822662106,9.672e-05,90591.0,90585.0,0.055187]
[1731822662406,9.672e-05,90591.0,90586.0,0.00612073]
[1731822662703,9.672e-05,90591.0,90590.0,0.20415438]
[1731822662908,9.672e-05,90591.0,90590.0,0.21027511]
[1731822663501,9.672e-05,90591.0,90590.0,0.22005683]
[1731822664007,9.672e-05,90591.0,90590.0,0.20415438]
[1731822664197,9.672e-05,90591.0,90590.0,0.21021955]
[1731822664395,9.672e-05,90591.0,90590.0,0.21993927]
[1731822665401,9.672e-05,90591.0,90590.0,0.07096989]
[1731822666209,9.672e-05,90591.0,90590.0,0.32763444]
[1731822667094,9.672e-05,90591.0,90590.0,0.32760845]
[1731822667298,9.672e-05,90591.0,90590.0,0.06296989]
[1731822667495,9.672e-05,90591.0,90590.0,0.06297602]
[1731822670916,9.672e-05,90591.0,90590.0,0.06271098]
[1731822674226,9.672e-05,90591.0,90590.0,0.05315597]
[1731822674404,9.672e-05,90591.0,90590.0,0.06270079]
[1731822676009,9.672e-05,90591.0,90590.0,0.05315205]
[1731822677318,9.672e-05,90591.0,90590.0,0.06268486]
[1731822677711,9.672e-05,90591.0,90590.0,0.42348486]
[1731822678605,9.672e-05,90591.0,90590.0,0.06268486]
[1731822678807,9.672e-05,90591.0,90590.0,0.42348486]
[1731822680123,9.672e-05,90591.0,90590.0,0.41395205]
[1731822680311,9.672e-05,90591.0,90590.0,0.52116538]
[1731822680506,9.672e-05,90591.0,90590.0,0.78580394]
[1731822680707,9.672e-05,90591.0,90590.0,0.52116538]
[1731822681118,9.672e-05,90591.0,90590.0,0.51519833]
[1731822681309,9.672e-05,90591.0,90590.0,0.51182061]
[1731822681525,0.1,90600.0,90590.0,0.49992226]
[1731822681723,0.1,90600.0,90599.0,0.15293393]
[1731822681911,0.1,90600.0,90599.0,0.15882899]
[1731822682527,0.10009747,90600.0,90599.0,0.15891331]
[1731822682914,0.10009747,90600.0,90599.0,0.06115838]
[1731822684015,0.10009747,90600.0,90599.0,0.07062882]
[1731822686111,0.10009747,90600.0,90599.0,0.06115838]
[1731822686426,0.10009747,90600.0,90599.0,0.07058878]
[1731822686931,0.10009747,90600.0,90599.0,0.07058891]
[1731822688127,0.10009747,90600.0,90599.0,0.06469385]
[1731822688312,0.10009747,90600.0,90599.0,0.05526332]
[1731822688618,0.10009747,90600.0,90599.0,0.07059174]
[1731822691919,0.10009747,90600.0,90599.0,0.26903085]
[1731822692426,0.10009747,90600.0,90599.0,0.21950122]
[1731822692623,0.16426048,90618.0,90612.0,0.055172]
[1731822692831,0.16426048,90616.0,90612.0,0.06106699]
[1731822693619,0.06159099,90613.0,90612.0,0.06106699]
[1731822696026,0.00165533,90625.0,90624.0,0.055164]
[1731822696230,0.00165533,90625.0,90624.0,0.65448847]
[1731822697129,0.00165533,90625.0,90624.0,0.85277042]
[1731822697433,0.00165533,90625.0,90624.0,0.65448847]
[1731822697618,0.00165533,90625.0,90624.0,0.85254636]
[1731822697824,0.00165533,90625.0,90624.0,0.65448847]
[1731822698332,0.00165533,90625.0,90624.0,0.64859348]
[1731822700022,0.00165533,90625.0,90624.0,1.00939348]
[1731822700631,8.036e-05,90626.0,90624.0,1.06930401]
[1731822700841,8.036e-05,90626.0,90625.0,0.01181838]
[1731822701722,8.036e-05,90626.0,90625.0,0.0176314]
[1731822702529,8.036e-05,90626.0,90625.0,0.01181838]
[1731822703130,8.036e-05,90626.0,90625.0,0.01762091]
[1731822703633,8.036e-05,90626.0,90624.0,0.81769615]
[1731822703822,8.036e-05,90626.0,90625.0,0.09172]
[1731822704732,8.036e-05,90626.0,90625.0,0.20121703]
[1731822704936,8.036e-05,90626.0,90625.0,0.18938011]
[1731822705122,8.036e-05,90626.0,90625.0,0.20122325]
[1731822705440,8.036e-05,90626.0,90625.0,0.18938011]
[1731822705922,8.036e-05,90626.0,90625.0,0.2012227]
[1731822706120,8.036e-05,90626.0,90625.0,0.18938011]
[1731822706320,8.036e-05,90626.0,90625.0,0.19517339]
[1731822706930,8.036e-05,90626.0,90625.0,0.22567339]
[1731822707126,8.036e-05,90626.0,90625.0,0.25124341]
[1731822707331,0.09766011,90643.0,90630.0,0.09766011]
[1731822707531,0.09766011,90643.0,90636.0,0.055157]
[1731822708032,0.09766011,90643.0,90632.0,0.3608]
[1731822708233,0.09766011,90643.0,90637.0,0.055156]
[1731822708438,0.00013808,90642.0,90637.0,0.055156]
[1731822709538,0.00013808,90642.0,90640.0,0.055154]
[1731822709735,0.00013808,90642.0,90633.0,0.055158]
[1731822709938,0.00013808,90642.0,90634.0,0.00585464]
[1731822710127,0.09766011,90640.0,90637.0,0.055156]
[1731822711428,0.09766011,90640.0,90637.0,0.047156]
[1731822720249,0.055155,90639.0,90633.0,0.146879]
[1731822720547,0.09766011,90635.0,90633.0,0.146879]
[1731822720748,0.09766011,90635.0,90633.0,0.19511058]
[1731822721547,0.09766011,90635.0,90633.0,0.10339058]
[1731822721746,0.09766011,90635.0,90634.0,0.01178956]
[1731822722134,0.09766011,90635.0,90634.0,0.00589479]
[1731822722337,0.09766011,90635.0,90634.0,0.01179248]
[1731822722648,0.09766011,90635.0,90634.0,0.01179974]
[1731822723348,0.09766011,90635.0,90634.0,0.20985763]
[1731822723550,0.00013808,90642.0,90634.0,0.20985763]
[1731822723857,0.09766011,90635.0,90634.0,0.00589479]
[1731822724146,0.09766011,90635.0,90634.0,0.01181738]
[1731822725247,0.15131732,90635.0,90634.0,0.01181738]
[1731822726334,0.15131732,90635.0,90634.0,0.00381738]
[1731822726937,0.15131732,90635.0,90634.0,0.01330967]
[1731822727137,0.15131732,90635.0,90634.0,0.00381738]
[1731822727346,0.15131732,90635.0,90634.0,0.01331037]
[1731822727553,0.25734663,90635.0,90634.0,0.00381738]
[1731822727735,0.055163,90626.0,90625.0,0.09152]
[1731822727951,0.15132257,90626.0,90620.0,0.19805789]
[1731822728244,0.09766011,90621.0,90619.0,0.19805789]
[1731822728445,0.15282611,90621.0,90620.0,0.00949652]
[1731822729353,0.055167,90619.0,90618.0,0.04797235]
[1731822729652,0.055167,90619.0,90618.0,0.00949427]
[1731822730053,0.15282711,90619.0,90618.0,0.00949427]
[1731822730442,0.055169,90616.0,90615.0,0.00165493]
[1731822730750,0.055169,90616.0,90615.0,0.01120556]
[1731822730944,0.055169,90616.0,90615.0,0.00165493]
[1731822733152,0.48966011,90619.0,90605.0,0.20315789]
[1731822733453,0.48966011,90619.0,90601.0,0.02208534]
[1731822733454,0.055176,90605.0,90601.0,0.02208534]
[1731822733655,0.055176,90605.0,90599.0,8.432e-05]
[1731822733656,0.055179,90600.0,90599.0,8.432e-05]
[1731822734044,0.055179,90600.0,90599.0,0.047435]
[1731822734355,0.055179,90600.0,90599.0,8.432e-05]
[1731822734549,0.15283911,90600.0,90599.0,8.432e-05]
[1731822734762,0.055179,90600.0,90599.0,8.432e-05]
[1731822738956,0.09830011,90603.0,90599.0,8.432e-05]
[1731822739159,0.09766011,90603.0,90599.0,0.05526332]
[1731822741256,0.09766011,90603.0,90599.0,0.04726332]
[1731822741650,0.09766011,90603.0,90598.0,0.0332]
[1731822741651,0.09766011,90603.0,90600.0,0.00587525]
[1731822741844,0.09766011,90603.0,90598.0,0.0332]
[1731822742249,0.09766011,90603.0,90600.0,8.113e-05]
[1731822744156,0.055178,90602.0,90600.0,8.113e-05]
[1731822744959,0.415978,90602.0,90600.0,8.113e-05]
[1731822745764,0.09766011,90601.0,90600.0,8.113e-05]
[1731822750184,0.42878011,90601.0,90600.0,8.113e-05]
[1731822750578,0.09766011,90601.0,90600.0,8.113e-05]
[1731822751989,0.09766011,90601.0,90581.0,0.0611]
[1731822751990,0.055186,90589.0,90581.0,0.031]
[1731822752294,0.055195,90574.0,90573.0,0.0051]
[1731822752586,0.15285511,90574.0,90571.0,0.05339227]
[1731822752983,0.15285511,90574.0,90572.0,8.542e-05]
[1731822752984,0.15294184,90574.0,90572.0,8.542e-05]
[1731822755664,0.09774684,90574.0,90572.0,8.542e-05]
[1731822756267,0.09774684,90574.0,90571.0,0.02338542]
[1731822757367,0.09774684,90574.0,90571.0,0.02346902]
[1731822758165,8.673e-05,90574.0,90573.0,0.055195]
[1731822758970,8.673e-05,90574.0,90573.0,0.415995]
[1731822760169,8.673e-05,90574.0,90573.0,0.42176009]
[1731822762613,8.673e-05,90574.0,90573.0,0.36656509]
[1731822762792,8.673e-05,90574.0,90573.0,0.3608]
[1731822763576,8.673e-05,90574.0,90572.0,0.055195]
[1731822765274,8.673e-05,90574.0,90571.0,0.02346902]
[1731822765275,0.09774684,90574.0,90571.0,0.02346902]
[1731822765586,0.055196,90572.0,90571.0,0.02346902]
[1731822765774,0.055196,90572.0,90571.0,0.00579033]
[1731822766481,0.055196,90572.0,90571.0,8.36e-05]
[1731822769666,8.673e-05,90574.0,90572.0,0.055196]
[1731822769866,8.673e-05,90574.0,90573.0,0.49096011]
[1731822770598,8.673e-05,90574.0,90573.0,0.689018]
[1731822770783,8.673e-05,90574.0,90573.0,0.49096011]
[1731822770995,8.673e-05,90574.0,90573.0,0.68906753]
[1731822771482,8.673e-05,90574.0,90573.0,0.68106753]
[1731822771673,8.673e-05,90574.0,90573.0,0.48296011]
[1731822772987,8.673e-05,90574.0,90573.0,0.3853]
[1731822773287,8.673e-05,90574.0,90573.0,0.58351744]
[1731822773680,8.673e-05,90574.0,90573.0,0.3853]
[1731822776175,8.673e-05,90574.0,90573.0,0.58369902]
[1731822776488,8.673e-05,90574.0,90573.0,0.3853]
[1731822776694,0.05528173,90574.0,90573.0,0.0245]
[1731822776991,0.05528173,90574.0,90571.0,8.36e-05]
[1731822777175,0.055196,90573.0,90571.0,8.36e-05]
[1731822779681,0.055196,90573.0,90572.0,0.19842612]
[1731822782204,0.055196,90573.0,90571.0,8.36e-05]
[1731822782805,0.055196,90573.0,90572.0,0.19857556]
[1731822783490,0.055196,90572.0,90571.0,8.36e-05]
[1731822783877,0.055196,90572.0,90571.0,0.19866221]
[1731822784084,0.055196,90572.0,90571.0,8.36e-05]
[1731822785187,0.055196,90572.0,90571.0,0.19866367]
[1731822785493,0.055196,90572.0,90571.0,8.36e-05]
[1731822786396,0.055197,90571.0,90570.0,0.19066367]
[1731822787283,0.13096643,90574.0,90573.0,0.055195]
[1731822787486,0.13146092,90580.0,90573.0,0.5354469]
[1731822787682,0.13146092,90582.0,90581.0,0.05519]
[1731822787997,0.13146092,90585.0,90583.0,0.055189]
[1731822788200,0.5254362,90590.0,90581.0,0.09124]
[1731822788201,0.13146092,90588.0,90584.0,0.0329]
[1731822788499,0.49282093,90590.0,90589.0,0.055186]
[1731822788801,0.49226092,90590.0,90585.0,8.673e-05]
[1731822789186,0.49226092,90590.0,90587.0,0.055187]
[1731822789596,0.3608,90590.0,90587.0,0.055187]
[1731822789990,0.3608,90590.0,90588.0,0.055186]
[1731822790910,0.00165635,90592.0,90588.0,0.055186]
[1731822790911,0.00165635,90592.0,90590.0,0.055185]
[1731822791381,0.00165635,90592.0,90591.0,0.1490119]
[1731822795995,0.00165635,90592.0,90590.0,0.055185]
[1731822801115,9.674e-05,90593.0,90588.0,0.3608]
[1731822801296,9.674e-05,90593.0,90592.0,0.047184]
[1731822801497,9.674e-05,90593.0,90592.0,0.138424]
[1731822803298,9.674e-05,90593.0,90592.0,0.50360061]
[1731822803611,9.674e-05,90593.0,90592.0,0.50360079]
[1731822803803,0.055175,90606.0,90602.0,0.055177]
[1731822804008,0.055175,90606.0,90603.0,0.415977]
[1731822804209,0.055175,90606.0,90604.0,0.055176]
[1731822804813,0.0001117,90605.0,90604.0,0.055176]
[1731822814620,0.13157262,90605.0,90604.0,0.055176]
[1731822815110,0.0001117,90605.0,90604.0,0.055176]
[1731822815311,0.13138822,90605.0,90604.0,0.055176]
[1731822815512,0.0001117,90605.0,90604.0,0.055176]
[1731822816311,0.0001117,90605.0,90604.0,0.047176]
[1731822817504,0.0001117,90605.0,90604.0,0.14490707]
[1731822817820,0.13163957,90605.0,90604.0,0.14490707]
[1731822818117,0.0001117,90605.0,90604.0,0.14490707]
[1731822818712,0.0001117,90605.0,90604.0,0.23594707]
[1731822819403,0.0001117,90605.0,90604.0,0.34631686]
[1731822819610,0.13152787,90613.0,90604.0,0.57970579]
[1731822819808,0.55836561,90625.0,90614.0,0.05517]
[1731822819809,0.13152787,90616.0,90614.0,0.05517]
[1731822820007,0.13152787,90616.0,90615.0,0.18877107]
[1731822820519,0.13152787,90617.0,90616.0,0.055169]
[1731822820709,0.13152787,90617.0,90616.0,0.15290007]
[1731822821020,0.13152787,90617.0,90616.0,0.055169]
[1731822821317,0.00014151,90621.0,90620.0,0.055167]
[1731822821913,0.00014151,90621.0,90620.0,0.415967]
[1731822824923,0.00432284,90640.0,90620.0,0.7216]
[1731822825109,0.0479004,90634.0,90621.0,0.0304]
[1731822825421,0.055158,90634.0,90633.0,0.3608]
[1731822825814,0.05527223,90634.0,90633.0,0.3608]
[1731822827722,0.055161,90630.0,90629.0,0.3608]
[1731822832308,0.055161,90630.0,90629.0,0.3528]
[1731822832509,0.055165,90622.0,90621.0,0.3912]
[1731822833714,0.055165,90622.0,90621.0,0.43846933]
[1731822836420,0.055165,90622.0,90621.0,0.40806933]
[1731822838511,0.055165,90622.0,90621.0,0.19612031]
[1731822838716,0.05527223,90634.0,90621.0,0.19612031]
[1731822838717,0.00011423,90634.0,90621.0,0.19612031]
[1731822839031,0.00011423,90634.0,90633.0,0.3608]
[1731822841223,0.05527223,90634.0,90633.0,0.3608]
[1731822841523,0.055159,90633.0,90627.0,0.0329]
[1731822841713,0.055159,90633.0,90632.0,0.3608]
[1731822846331,0.00011423,90634.0,90632.0,0.3608]
[1731822846332,0.00011423,90634.0,90632.0,0.3528]
[1731822846639,0.00011423,90634.0,90633.0,0.033]
[1731822846827,0.00011423,90634.0,90633.0,0.13062703]
[1731822848638,0.00011423,90634.0,90633.0,0.12384]
[1731822848830,0.00011423,90634.0,90633.0,0.27262345]
[1731822849420,0.00011423,90634.0,90633.0,0.53717819]
[1731822849825,0.00011423,90634.0,90633.0,0.27262345]
[1731822852145,0.00011423,90634.0,90633.0,0.27833806]
[1731822852322,0.00011423,90634.0,90633.0,0.54254447]
[1731822853126,0.00011423,90634.0,90633.0,0.27262345]
[1731822855028,0.00011423,90634.0,90633.0,0.53682986]
[1731822855526,0.00011423,90634.0,90633.0,0.27262345]
[1731822856334,0.00011423,90634.0,90633.0,0.53682986]
[1731822856532,0.00011423,90634.0,90633.0,0.27262345]
[1731822857638,0.00011423,90634.0,90633.0,0.5370001]
[1731822857938,0.00011423,90634.0,90633.0,0.27262345]
[1731822858645,0.00011423,90634.0,90633.0,0.6680376]
[1731822859151,0.00011423,90634.0,90633.0,0.67374967]
[1731822859640,0.00011423,90634.0,90633.0,0.67374941]
[1731822861336,0.00011423,90634.0,90633.0,0.66574941]
[1731822862038,0.16419336,90646.0,90633.0,0.66574941]
[1731822862342,0.21934336,90647.0,90645.0,0.415951]
[1731822862541,0.21934336,90647.0,90646.0,0.0331]
[1731822863158,0.05527971,90647.0,90646.0,0.0331]
[1731822865372,0.00012971,90647.0,90646.0,0.0331]
[1731822865677,0.16432307,90647.0,90646.0,0.0331]
[1731822865966,0.00012971,90647.0,90646.0,0.0331]
[1731822866474,0.00012971,90647.0,90646.0,0.48484981]
[1731822866666,0.00012971,90647.0,90646.0,0.49063019]
[1731822867063,0.00012971,90647.0,90646.0,0.48484981]
[1731822867267,0.00012971,90647.0,90646.0,0.49066073]
[1731822868875,0.00012971,90647.0,90646.0,0.58825795]
[1731822869062,0.055143,90659.0,90657.0,0.055144]
[1731822869384,0.055143,90659.0,90658.0,0.3608]
[1731822869679,0.055143,90659.0,90658.0,0.45839722]
[1731822869979,0.05524319,90659.0,90658.0,0.45839722]
[1731822870568,0.00010019,90659.0,90658.0,0.45839722]
[1731822876254,0.00010019,90659.0,90658.0,0.45039722]
[1731822876658,0.00010019,90659.0,90658.0,0.3528]
[1731822877853,0.00010019,90659.0,90658.0,0.3608]
[1731822882459,0.00010019,90659.0,90658.0,0.45839722]
[1731822884850,0.00010019,90659.0,90658.0,0.3608]
[1731822886848,0.05524319,90659.0,90658.0,0.3608]
[1731822887049,0.18676256,90659.0,90658.0,0.3608]